bitfinex-derivatives/quotes_ETHF0:USTF0_20241129
["timestamp","ask_amount","ask_price","bid_price","bid_amount"]
[1732898690044,0.27731,3602.0,3601.7,4.7453]
[1732898690245,0.2773,3602.1,3601.8,0.27731]
[1732898690446,0.2773,3602.0,3601.8,0.29731]
[1732898691647,0.27729,3602.1,3601.8,0.02]
[1732898691842,0.2773,3602.0,3601.8,0.29731]
[1732898692039,0.2773,3602.1,3601.9,0.27731]
[1732898692242,0.2773,3602.1,3601.9,0.28731]
[1732898692448,4.7241,3602.6,3601.9,0.01]
[1732898692743,5.41724,3602.6,3601.9,0.01]
[1732898692943,0.27729,3602.1,3601.9,0.01]
[1732898693348,0.2773,3602.0,3601.9,0.01]
[1732898693545,4.7241,3602.6,3601.9,0.01]
[1732898693739,0.27727,3602.4,3602.2,0.27728]
[1732898694051,4.7241,3602.6,3601.8,1.6127]
[1732898694349,4.7241,3602.6,3601.8,2.1027]
[1732898694550,0.27728,3602.3,3602.1,0.27729]
[1732898694743,0.27728,3602.3,3602.1,0.29729]
[1732898695049,0.27728,3602.2,3602.1,0.02]
[1732898695637,0.27727,3602.4,3602.1,0.29729]
[1732898695845,0.27728,3602.3,3602.1,0.29729]
[1732898696038,4.7241,3602.6,3602.1,0.29729]
[1732898696039,1.5163,3602.6,3602.3,0.27727]
[1732898696239,1.5272,3603.3,3602.3,0.27727]
[1732898696240,3.0275,3603.3,3602.5,3.2078]
[1732898696442,0.69289,3603.9,3603.1,3.2078]
[1732898696645,1.5003,3603.5,3603.1,3.2078]
[1732898696944,0.27721,3603.2,3603.1,3.2078]
[1732898698050,1.5003,3603.5,3602.6,4.8334]
[1732898698051,0.69301,3603.3,3602.6,4.8334]
[1732898698250,0.27725,3602.7,3602.6,4.8734]
[1732898698449,0.27724,3602.9,3602.7,0.27725]
[1732898698644,0.2772,3603.3,3602.6,5.11065]
[1732898698844,0.27724,3602.8,3602.6,4.8734]
[1732898699253,0.27725,3602.7,3602.6,0.04]
[1732898699445,0.27725,3602.6,3602.2,4.3998]
[1732898699646,0.27728,3602.3,3602.2,1.252]
[1732898699846,1.4894,3602.7,3602.2,4.4598]
[1732898700044,0.27727,3602.5,3602.2,4.73708]
[1732898700250,1.4894,3602.7,3602.2,3.2678]
[1732898700452,0.27724,3602.8,3602.6,3.48505]
[1732898700651,4.692,3603.2,3602.6,3.4478]
[1732898700843,4.692,3603.2,3602.7,3.0087]
[1732898701048,4.692,3603.2,3602.7,1.5381]
[1732898701049,0.27724,3602.8,3602.7,1.5381]
[1732898701453,0.27724,3602.8,3602.7,1.5281]
[1732898701648,0.69304,3603.1,3602.3,0.27728]
[1732898701955,4.692,3603.2,3602.3,0.05]
[1732898702159,0.69306,3603.0,3602.3,0.32727]
[1732898702355,0.27726,3602.5,3602.3,0.32727]
[1732898702653,4.692,3603.2,3602.2,4.7359]
[1732898702852,0.69306,3603.0,3602.3,1.189]
[1732898703052,0.27727,3602.4,3602.3,1.189]
[1732898703658,0.27727,3602.4,3602.3,0.66672984]
[1732898703955,0.2773,3602.0,3601.9,1.189]
[1732898704151,0.27731,3601.9,3601.8,3.2078]
[1732898704346,0.69332,3601.7,3600.8,3.1473]
[1732898704555,0.27736,3601.2,3601.1,3.2078]
[1732898704949,1.4913,3601.6,3601.1,3.2078]
[1732898705148,1.4913,3601.6,3601.1,3.48517]
[1732898705149,0.27736,3601.3,3601.1,3.48517]
[1732898705348,0.27736,3601.2,3601.1,3.2078]
[1732898705548,0.27738,3601.0,3600.9,1.189]
[1732898705762,0.27738,3601.0,3600.9,1.489]
[1732898706060,0.27738,3601.0,3600.9,1.189]
[1732898706658,0.27738,3600.9,3600.8,4.3363]
[1732898707262,2.18463,3601.6,3600.8,4.84369]
[1732898707455,0.27737,3601.1,3601.0,3.2078]
[1732898709258,2.18463,3601.6,3600.8,3.1473]
[1732898709259,0.27738,3600.9,3600.8,1.5635]
[1732898709663,0.27739,3600.8,3600.7,1.19]
[1732898710459,0.2774,3600.7,3600.5,4.3978]
[1732898710663,0.27739,3600.8,3600.5,4.3978]
[1732898710963,0.27739,3600.9,3600.6,0.2774]
[1732898711569,0.69339,3601.3,3600.5,4.3978]
[1732898711761,0.69339,3601.3,3600.5,4.67521]
[1732898712064,0.27741,3600.7,3600.5,4.3978]
[1732898712269,0.27741,3600.6,3600.5,3.2078]
[1732898712866,0.27741,3600.5,3600.4,1.5109]
[1732898713264,1.492,3600.8,3600.0,4.3978]
[1732898713265,0.27745,3600.1,3600.0,3.2078]
[1732898713567,1.492,3600.8,3599.7,1.5386]
[1732898713568,0.27747,3599.8,3599.7,1.5386]
[1732898713767,1.492,3600.0,3599.3,0.27751]
[1732898714061,1.492,3600.0,3599.3,1.5386]
[1732898714263,3.2078,3600.7,3599.5,3.2078]
[1732898714461,1.492,3600.9,3600.3,3.2078]
[1732898714761,0.69332,3601.7,3600.7,3.2078]
[1732898714967,0.27738,3601.0,3600.7,3.2078]
[1732898715165,2.18533,3601.6,3600.7,3.2078]
[1732898715366,0.27739,3600.9,3600.7,3.2078]
[1732898715567,0.27739,3600.9,3600.7,3.2178]
[1732898716268,0.27739,3600.9,3600.7,3.2078]
[1732898716571,0.69335,3601.5,3600.7,3.2078]
[1732898716770,0.27739,3600.9,3600.7,3.2078]
[1732898717069,3.2078,3601.5,3600.7,3.2078]
[1732898717261,0.27739,3600.8,3600.7,3.2078]
[1732898717467,0.27739,3600.8,3600.6,1.19]
[1732898717971,0.69339,3601.3,3600.6,1.19]
[1732898718171,0.2774,3600.8,3600.6,1.19]
[1732898718469,0.69339,3601.3,3600.6,1.19]
[1732898718663,0.69339,3601.3,3600.5,0.27741]
[1732898718872,0.2774,3600.8,3600.5,1.46741]
[1732898719669,3.2078,3601.5,3600.5,1.19]
[1732898719865,0.27738,3600.9,3600.8,3.2078]
[1732898720865,0.69341,3601.2,3600.5,1.19]
[1732898721065,2.92776303,3600.9,3599.9,3.2078]
[1732898721269,1.5791,3600.8,3600.0,0.27745]
[1732898721473,1.5791,3600.8,3599.9,3.2078]
[1732898721672,0.27744,3600.2,3599.9,3.48526]
[1732898722163,0.27744,3600.3,3600.0,0.27745]
[1732898722369,0.69351,3600.7,3599.9,3.48526]
[1732898722563,0.27745,3600.0,3599.9,3.2378]
[1732898722770,0.27745,3600.0,3599.9,3.2078]
[1732898723072,0.27745,3600.0,3599.8,1.86667]
[1732898723473,0.27745,3600.0,3599.8,1.5892]
[1732898723971,0.27746,3599.9,3599.8,1.5892]
[1732898724179,0.69361,3600.2,3599.7,1.19]
[1732898724468,0.27747,3599.8,3599.7,1.19]
[1732898725670,3.2078,3600.3,3599.5,4.82]
[1732898725877,0.27748,3599.6,3599.5,3.2078]
[1732898726970,1.523,3599.8,3599.5,3.2078]
[1732898727164,0.27748,3599.6,3599.5,3.2078]
[1732898727369,0.27748,3599.7,3599.5,3.2078]
[1732898728176,0.27748,3599.7,3599.5,3.48529]
[1732898728378,0.27748,3599.7,3599.5,3.2078]
[1732898728970,0.27748,3599.6,3599.5,3.2078]
[1732898729169,0.27751,3599.2,3599.1,1.6122]
[1732898729369,0.69373,3599.6,3598.7,3.2078]
[1732898729370,0.27755,3598.8,3598.7,3.2078]
[1732898729568,1.523,3599.8,3598.7,3.2078]
[1732898729877,0.27751,3599.3,3599.1,3.2078]
[1732898730177,0.27751,3599.2,3599.1,3.2078]
[1732898730566,3.83976013,3599.8,3598.8,1.19]
[1732898730767,0.69378,3599.3,3598.7,3.2078]
[1732898730968,0.69389,3598.7,3597.7,3.2078]
[1732898731280,3.88986013,3598.6,3597.8,1.5519]
[1732898731579,1.5731,3598.6,3597.8,1.5519]
[1732898731771,0.27758,3598.4,3597.8,1.5519]
[1732898731971,1.5731,3598.6,3597.8,1.5519]
[1732898732174,0.27757,3598.5,3598.1,3.2078]
[1732898732374,0.27757,3598.5,3598.2,0.27759]
[1732898732575,1.5731,3598.6,3598.1,3.2078]
[1732898732972,0.27759,3598.2,3598.1,3.2078]
[1732898733783,1.5731,3598.6,3598.1,3.2078]
[1732898734075,0.27759,3598.3,3598.1,3.2078]
[1732898734273,0.27759,3598.2,3598.1,3.2078]
[1732898734972,1.5731,3598.6,3598.1,3.2078]
[1732898735174,0.27759,3598.3,3598.1,3.2178]
[1732898735683,0.27758,3598.4,3598.1,3.2078]
[1732898735978,1.5731,3598.6,3598.1,3.2078]
[1732898735979,0.27759,3598.3,3598.1,3.2078]
[1732898736374,1.5731,3598.6,3598.3,0.27758]
[1732898736580,3.2078,3599.0,3598.1,3.2078]
[1732898736884,0.27756,3598.6,3598.3,0.27758]
[1732898737179,0.27757,3598.5,3598.2,0.27759]
[1732898737379,0.27757,3598.5,3598.2,0.28759]
[1732898738374,1.4789,3598.9,3598.1,3.2078]
[1732898738675,3.2078,3598.6,3597.8,1.5519]
[1732898739179,0.27761,3598.0,3597.8,1.5519]
[1732898739578,0.27761,3598.1,3597.8,1.82952]
[1732898739972,0.27761,3598.1,3597.8,1.83952]
[1732898740175,0.27761,3598.1,3597.8,1.5619]
[1732898740382,0.27761,3598.0,3597.8,1.5619]
[1732898740571,0.27761,3598.0,3597.8,1.83952]
[1732898740776,0.69389,3598.7,3597.8,1.5619]
[1732898740977,1.4789,3598.9,3598.3,0.27758]
[1732898741173,0.27755,3598.8,3598.6,0.27756]
[1732898741683,3.2078,3600.2,3598.6,8.66510402]
[1732898741983,6.2645,3600.7,3599.5,3.2078]
[1732898742175,0.69361,3600.2,3599.5,0.03]
[1732898742376,0.27752,3599.2,3598.9,0.27753]
[1732898742578,3.90146,3599.9,3598.9,0.05]
[1732898742780,0.27751,3599.3,3599.0,0.27753]
[1732898742979,1.5953,3599.8,3598.8,1.5655]
[1732898743189,0.2775,3599.4,3599.1,0.27752]
[1732898743482,1.5953,3599.8,3599.3,0.27751]
[1732898743483,0.27749,3599.6,3599.3,0.27751]
[1732898743681,1.5953,3599.8,3599.4,0.2775]
[1732898743982,0.27749,3599.6,3599.3,0.27751]
[1732898744685,0.27748,3599.7,3599.1,3.2078]
[1732898744983,0.27749,3599.6,3599.3,0.2775]
[1732898745482,0.27749,3599.6,3599.4,0.2775]
[1732898745882,0.27749,3599.6,3599.3,0.2775]
[1732898746084,1.5953,3599.8,3599.1,3.2078]
[1732898746280,1.5953,3599.8,3599.1,3.2278]
[1732898746476,1.5953,3599.8,3599.4,0.2775]
[1732898746781,1.5071,3600.5,3599.5,3.2078]
[1732898746984,1.5071,3600.5,3600.2,3.2078]
[1732898746985,0.27742,3600.4,3600.2,3.2078]
[1732898747184,1.557,3600.5,3600.2,3.2078]
[1732898747485,1.83442,3600.5,3600.2,3.2078]
[1732898747789,0.27742,3600.4,3600.2,3.2078]
[1732898747988,1.557,3600.5,3600.2,3.2078]
[1732898748190,1.83442,3600.5,3600.2,3.2078]
[1732898748383,1.557,3600.5,3600.2,3.2078]
[1732898748588,1.5233,3601.2,3600.2,3.2178]
[1732898748889,1.5233,3601.2,3600.7,3.2078]
[1732898749087,0.27737,3601.1,3600.7,3.4852]
[1732898749287,0.27738,3601.0,3600.7,3.4852]
[1732898749483,0.27738,3601.0,3600.7,3.2078]
[1732898749787,0.27739,3600.9,3600.7,3.2078]
[1732898749988,1.5233,3601.2,3600.7,3.4852]
[1732898750188,0.27738,3601.0,3600.7,3.4852]
[1732898750389,0.27737,3601.1,3600.8,0.27739]
[1732898750686,0.27737,3601.1,3600.7,3.2078]
[1732898750687,1.78566,3601.3,3600.7,3.2078]
[1732898751291,1.5083,3601.3,3600.7,3.2078]
[1732898751488,1.5083,3601.3,3601.1,3.2078]
[1732898751787,1.5083,3601.3,3601.1,3.48516]
[1732898752292,1.5083,3601.3,3601.2,0.27736]
[1732898752487,3.2078,3602.0,3601.1,3.2078]
[1732898752788,1.5563,3602.1,3601.7,3.48512]
[1732898752983,0.2773,3602.0,3601.7,1.85787485]
[1732898753481,1.5563,3602.1,3601.7,1.85787485]
[1732898753482,1.5563,3602.1,3601.7,1.58055485]
[1732898753688,1.5563,3602.1,3601.9,0.2773]
[1732898753886,1.83359,3602.1,3601.7,1.58055485]
[1732898754083,1.83359,3602.1,3601.7,1.86787485]
[1732898754284,1.5563,3602.1,3601.8,0.27731]
[1732898754481,1.5563,3602.1,3601.7,1.58055485]
[1732898754689,1.5563,3602.1,3601.4,1.188]
[1732898754890,1.5563,3602.1,3601.6,3.2078]
[1732898755087,1.5563,3602.1,3601.6,3.3478]
[1732898755382,3.2078,3602.7,3601.6,3.3478]
[1732898755587,3.2078,3602.7,3602.1,0.27729]
[1732898755588,0.27727,3602.5,3602.1,0.27729]
[1732898755787,0.27727,3602.5,3602.0,3.48509]
[1732898755987,0.27727,3602.5,3602.1,0.27729]
[1732898756184,3.2078,3602.7,3602.1,0.27729]
[1732898756379,3.2078,3602.7,3602.1,1.5642]
[1732898756584,0.27728,3602.2,3602.1,1.5642]
[1732898756885,0.27729,3602.2,3601.8,0.27731]
[1732898757093,0.27729,3602.2,3601.9,0.27731]
[1732898757292,3.2078,3602.7,3601.9,0.05]
[1732898757588,0.2773,3602.0,3601.9,0.05]
[1732898757792,0.27729,3602.1,3601.9,0.05]
[1732898757995,0.27729,3602.1,3601.7,0.27732]
[1732898758290,3.2078,3602.7,3601.9,0.2773]
[1732898758484,0.27729,3602.2,3601.9,0.02]
[1732898758684,3.2078,3602.7,3601.9,0.02]
[1732898759089,0.27728,3602.3,3601.9,0.2973]
[1732898759691,0.27729,3602.2,3601.9,0.2973]
[1732898760088,0.27728,3602.3,3601.9,0.02]
[1732898760287,0.27728,3602.3,3602.0,0.2773]
[1732898760492,0.27731,3602.0,3601.7,0.27732]
[1732898760693,0.2773,3602.0,3601.7,0.03]
[1732898760892,0.69314,3602.6,3601.7,0.03]
[1732898761088,0.27728,3602.3,3602.0,0.2773]
[1732898761285,0.27727,3602.4,3602.1,0.27729]
[1732898761491,0.27728,3602.3,3602.0,0.2773]
[1732898761693,3.2078,3602.7,3601.6,1.549]
[1732898761894,0.2773,3602.1,3601.8,0.27731]
[1732898762088,3.2078,3602.7,3601.8,0.05]
[1732898762293,3.90093,3602.7,3601.8,0.32731]
[1732898762500,0.69314,3602.6,3601.8,0.05]
[1732898762693,0.69319,3602.4,3601.8,0.05]
[1732898762897,0.69326,3602.0,3601.0,1.186]
[1732898763101,0.27736,3601.3,3601.1,1.4419]
[1732898763292,0.27736,3601.3,3601.1,1.4519]
[1732898763499,0.27736,3601.2,3601.1,1.4519]
[1732898763801,3.1514,3601.9,3601.1,1.4519]
[1732898764004,0.27731,3601.8,3601.3,0.27735]
[1732898764206,3.1514,3601.9,3601.1,1.4419]
[1732898764406,0.27735,3601.3,3601.1,1.4919]
[1732898764705,0.27736,3601.3,3601.1,1.4919]
[1732898764898,3.2078,3601.7,3601.1,1.76927]
[1732898764899,0.27735,3601.4,3601.1,1.76927]
[1732898765114,3.1514,3601.9,3601.1,1.4919]
[1732898765301,0.27735,3601.4,3601.1,1.76926]
[1732898765813,3.1514,3601.9,3601.1,1.4919]
[1732898766105,0.27736,3601.2,3601.1,0.05]
[1732898766303,0.27736,3601.2,3600.4,1.5781]
[1732898766304,0.27741,3600.5,3600.4,1.5781]
[1732898766498,3.2078,3600.7,3600.0,4.2756]
[1732898766698,0.27743,3600.3,3600.0,4.61305]
[1732898767101,3.2078,3600.7,3600.0,1.246]
[1732898767297,0.27746,3599.9,3599.8,1.5781]
[1732898768105,3.2078,3600.1,3599.4,1.186]
[1732898768404,0.27747,3599.9,3599.5,1.5781]
[1732898768605,0.69358,3600.4,3599.6,3.2078]
[1732898768805,0.27747,3599.9,3599.6,3.49528]
[1732898769015,0.69358,3600.4,3599.6,3.2178]
[1732898769205,0.27748,3599.7,3599.6,0.01]
[1732898769703,0.27748,3599.7,3599.5,2.7641]
[1732898769704,0.27745,3600.0,3599.5,1.5781]
[1732898769907,4.7602,3600.1,3599.5,1.5781]
[1732898770114,0.27748,3599.7,3599.5,1.5781]
[1732898770712,1.5524,3600.1,3599.5,1.5781]
[1732898771014,1.5524,3600.1,3599.2,1.186]
[1732898771015,0.69366,3599.9,3599.2,1.186]
[1732898771217,0.2775,3599.4,3599.2,1.186]
[1732898771708,0.27752,3599.1,3598.9,1.5435]
[1732898771920,0.27752,3599.1,3599.0,1.186]
[1732898772117,0.27752,3599.1,3599.0,1.196]
[1732898772309,0.27752,3599.1,3599.0,1.186]
[1732898772909,3.2078,3599.5,3599.0,1.186]
[1732898773115,0.27752,3599.2,3599.0,1.186]
[1732898773314,0.27752,3599.1,3599.0,1.186]
[1732898773714,3.2078,3599.5,3599.0,1.186]
[1732898774214,0.27753,3599.0,3598.9,1.5435]
[1732898774418,0.27753,3599.0,3598.9,0.03]
[1732898774712,0.27758,3598.5,3598.2,1.4427]
[1732898774917,2.28047,3599.4,3598.3,0.27758]
[1732898774918,1.5876,3598.9,3598.3,0.27758]
[1732898775121,1.5876,3598.9,3598.3,0.17]
[1732898775419,0.27757,3598.5,3598.3,0.17]
[1732898775914,0.27758,3598.4,3598.3,0.17]
[1732898776813,1.5876,3598.9,3598.3,0.17]
[1732898777109,0.27757,3598.6,3598.3,0.17]
[1732898777512,0.27758,3598.4,3598.3,0.17]
[1732898778214,0.27757,3598.5,3598.3,0.17]
[1732898779920,0.27758,3598.4,3598.2,2.90629]
[1732898780114,0.27758,3598.4,3598.2,3.43629]
[1732898780314,1.5876,3598.9,3598.2,3.43629]
[1732898780516,1.5876,3598.9,3598.3,3.2078]
[1732898780821,3.2078,3599.4,3598.7,3.2078]
[1732898781016,0.27752,3599.1,3598.9,0.27753]
[1732898781216,0.27752,3599.1,3598.9,0.38753]
[1732898781414,0.27752,3599.1,3599.0,1.5908]
[1732898781719,0.27752,3599.1,3599.0,1.6508]
[1732898782719,3.2078,3599.4,3599.0,1.6508]
[1732898782919,0.6936,3600.3,3599.1,4.3948]
[1732898783122,0.6936,3600.3,3599.2,1.4519]
[1732898783424,0.27751,3599.3,3599.2,0.74]
[1732898783716,0.27751,3599.2,3598.6,3.48536]
[1732898783910,0.27755,3598.7,3598.6,3.4978]
[1732898784110,0.27755,3598.8,3598.6,3.77536]
[1732898784423,0.27752,3599.1,3598.7,0.27755]
[1732898784623,0.2775,3599.4,3599.1,0.27752]
[1732898784820,0.27746,3599.9,3599.3,0.69378]
[1732898785019,0.27746,3600.0,3599.8,0.27747]
[1732898785217,0.27745,3600.0,3599.9,3.2078]
[1732898785422,0.27745,3600.0,3599.9,1.7969]
[1732898785614,1.5651,3600.6,3599.9,0.32]
[1732898785820,0.27742,3600.4,3599.9,0.27745]
[1732898786115,4.7729,3600.6,3599.9,0.02]
[1732898786321,0.69339,3601.3,3600.2,3.2078]
[1732898786523,0.27743,3600.4,3600.2,3.51523]
[1732898786720,3.62851402,3601.2,3600.2,3.2378]
[1732898786922,3.2078,3601.1,3600.2,3.2378]
[1732898787421,0.27742,3600.5,3600.2,3.51524]
[1732898787642,0.27741,3600.7,3600.3,0.27743]
[1732898787922,0.27741,3600.7,3600.2,3.2378]
[1732898787924,0.27742,3600.5,3600.2,3.48523]
[1732898788124,0.27743,3600.4,3600.2,3.2278]
[1732898788328,4.6888,3601.1,3600.2,3.2278]
[1732898788715,0.27742,3600.5,3600.2,3.2278]
[1732898789125,0.69346,3601.0,3600.2,3.2078]
[1732898789320,0.27743,3600.4,3600.2,3.2078]
[1732898789719,1.5705,3600.9,3600.2,3.2078]
[1732898790024,0.27741,3600.6,3600.2,3.2178]
[1732898790222,1.5705,3600.9,3600.3,0.27742]
[1732898790525,1.5705,3600.9,3600.2,3.2078]
[1732898790722,0.2774,3600.8,3600.4,0.27742]
[1732898791025,0.27743,3600.4,3600.2,3.2078]
[1732898791320,0.27743,3600.3,3600.2,3.2078]
[1732898791727,3.2078,3600.7,3600.2,3.2078]
[1732898791925,3.2078,3600.7,3600.3,0.27743]
[1732898791926,0.2774,3600.7,3600.3,0.27743]
[1732898792222,1.84789,3600.9,3600.5,0.27741]
[1732898792417,1.5705,3600.9,3600.2,3.2078]
[1732898792620,1.5705,3600.9,3600.3,1.4744]
[1732898792823,0.27741,3600.7,3600.3,1.80183]
[1732898793222,0.27742,3600.4,3600.3,0.05]
[1732898793530,0.27743,3600.3,3600.2,3.2078]
[1732898793722,0.27743,3600.4,3600.2,3.2078]
[1732898793922,3.2078,3600.7,3600.2,3.2078]
[1732898793923,0.27743,3600.3,3600.2,3.2078]
[1732898794125,0.27743,3600.4,3600.2,3.2078]
[1732898794531,0.27743,3600.3,3600.2,3.2078]
[1732898795820,0.27745,3600.1,3600.0,1.4769]
[1732898796018,3.2078,3600.3,3598.8,3.2078]
[1732898796226,0.27752,3599.2,3598.8,3.4078]
[1732898796425,0.6937,3599.7,3598.8,3.4078]
[1732898796633,0.27754,3598.9,3598.8,3.2078]
[1732898796926,0.69374,3599.5,3598.8,3.2078]
[1732898796927,3.2078,3599.5,3598.8,3.2078]
[1732898797124,0.27753,3599.0,3598.8,3.2078]
[1732898797428,0.27753,3599.0,3598.6,1.66176]
[1732898797429,0.27758,3598.4,3598.3,3.2078]
[1732898797634,0.27757,3598.5,3598.3,3.2078]
[1732898797929,1.453,3598.9,3598.3,3.2078]
[1732898798130,0.27758,3598.4,3598.3,3.2078]
[1732898798328,1.453,3598.9,3598.3,3.2078]
[1732898798528,1.453,3598.9,3598.3,3.49538]
[1732898798733,0.27756,3598.7,3598.3,3.49538]
[1732898799024,0.27755,3598.8,3598.4,0.27757]
[1732898799230,0.27756,3598.7,3598.4,0.01]
[1732898799626,1.453,3598.9,3598.4,0.01]
[1732898799830,0.27755,3598.8,3598.5,0.27756]
[1732898800029,0.27755,3598.8,3598.3,3.2078]
[1732898800030,0.27756,3598.6,3598.3,3.48538]
[1732898800334,0.27756,3598.6,3598.3,3.53538]
[1732898800536,0.27758,3598.4,3598.3,0.05]
[1732898800733,0.27758,3598.4,3597.9,3.2078]
[1732898800734,0.2776,3598.1,3597.9,3.48541]
[1732898800924,0.27761,3598.1,3597.9,3.3078]
[1732898801932,0.2776,3598.2,3597.9,3.58541]
[1732898802133,0.69391,3598.6,3597.7,1.185]
[1732898802334,0.27762,3597.9,3597.7,1.485]
[1732898802533,3.2078,3598.3,3597.7,0.3]
[1732898802729,0.27762,3597.8,3597.7,0.3]
[1732898802932,0.27763,3597.8,3597.5,6.32344]
[1732898803133,3.9017,3598.7,3597.5,6.6158]
[1732898803337,3.9017,3598.7,3597.9,3.48541]
[1732898803629,0.27756,3598.6,3598.0,0.27761]
[1732898803830,3.2078,3598.7,3597.9,3.48541]
[1732898804032,0.97148,3598.6,3597.8,0.27762]
[1732898804234,0.27761,3598.0,3597.8,0.27762]
[1732898804428,3.2078,3598.7,3597.5,6.0458]
[1732898804429,0.2776,3598.1,3597.5,6.0458]
[1732898804634,0.2776,3598.2,3597.9,0.27761]
[1732898804936,0.2776,3598.1,3597.9,0.27761]
[1732898805336,3.2078,3598.7,3597.5,6.0458]
[1732898805337,0.69391,3598.6,3597.8,0.27762]
[1732898805637,0.27761,3598.0,3597.5,6.0458]
[1732898805835,3.2078,3598.7,3597.7,0.27763]
[1732898806129,0.27761,3598.0,3597.7,0.28763]
[1732898806330,0.69393,3598.5,3597.7,0.28763]
[1732898806531,0.27762,3597.9,3597.7,0.28763]
[1732898806836,0.27761,3598.0,3597.8,0.27762]
[1732898807232,3.2078,3598.7,3597.7,0.27763]
[1732898807533,0.27762,3597.8,3597.7,0.11]
[1732898807934,0.69393,3598.5,3597.7,0.11]
[1732898808134,0.2776,3598.1,3597.9,3.48542]
[1732898808338,0.27761,3598.0,3597.9,3.2078]
[1732898808637,0.27761,3598.0,3597.9,3.2178]
[1732898809538,3.90173,3598.6,3597.9,3.2178]
[1732898809834,3.2078,3598.6,3597.9,3.2178]
[1732898810140,0.2776,3598.2,3598.0,0.27761]
[1732898810335,0.2776,3598.2,3598.1,0.2776]
[1732898810537,0.2776,3598.2,3598.1,0.2876]
[1732898810838,3.2078,3598.6,3598.1,0.01]
[1732898811032,0.27757,3598.6,3598.5,0.27757]
[1732898811238,1.453,3598.9,3598.5,0.07]
[1732898811443,0.27756,3598.6,3598.5,0.07]
[1732898811639,0.27756,3598.6,3598.1,1.185]
[1732898811640,2.14685,3598.9,3598.3,1.3599]
[1732898811942,0.27758,3598.4,3598.3,1.67748]
[1732898812238,1.453,3598.9,3598.3,1.3999]
[1732898812441,1.453,3598.9,3598.4,3.2078]
[1732898812641,0.27757,3598.5,3598.4,0.11]
[1732898812843,0.27757,3598.5,3598.4,0.38758]
[1732898813033,1.453,3598.9,3598.4,0.11]
[1732898813240,3.2078,3599.1,3598.4,0.11]
[1732898813440,0.27752,3599.2,3599.1,0.27752]
[1732898813641,0.27752,3599.2,3599.1,1.3599]
[1732898814736,0.27752,3599.2,3599.1,1.63742]
[1732898815342,0.27752,3599.2,3599.1,1.3599]
[1732898815548,0.27751,3599.3,3599.1,1.63742]
[1732898815756,3.2078,3599.5,3599.1,1.3699]
[1732898816040,3.2078,3599.5,3599.4,0.2775]
[1732898816541,3.48529,3599.5,3599.4,0.2775]
[1732898817658,3.2078,3599.5,3599.1,1.3599]
[1732898817948,0.2775,3599.4,3599.3,0.2775]
[1732898818443,0.2775,3599.4,3599.3,0.2875]
[1732898818749,5.0,3599.4,3598.1,3.43733099]
[1732898818943,3.2078,3598.2,3597.1,3.2078]
[1732898819143,0.27763,3597.8,3597.4,0.27765]
[1732898819442,0.27763,3597.8,3597.4,0.43765]
[1732898819640,0.27763,3597.8,3597.4,0.16]
[1732898819942,0.27763,3597.7,3597.4,0.16]
[1732898820148,3.2078,3598.2,3597.4,0.16]
[1732898820347,3.2078,3597.8,3597.4,0.16]
[1732898820546,0.27765,3597.5,3597.4,0.16]
[1732898820739,0.27763,3597.7,3597.4,0.16]
[1732898820942,3.2078,3597.8,3597.4,0.16]
[1732898821145,0.27765,3597.5,3597.4,0.16]
[1732898821548,3.2078,3597.8,3597.4,0.16]
[1732898821743,3.2078,3598.2,3597.4,0.16]
[1732898822248,4.6204,3598.2,3597.4,0.16]
[1732898822453,0.27763,3597.7,3597.5,0.27764]
[1732898822748,3.2078,3598.8,3598.1,0.2776]
[1732898822949,0.27759,3598.3,3598.1,0.2976]
[1732898823149,3.2078,3598.8,3598.1,0.02]
[1732898823350,0.27759,3598.2,3598.1,0.02]
[1732898823652,0.27764,3597.6,3597.3,0.03]
[1732898823846,3.2078,3597.4,3595.1,3.2078]
[1732898824047,3.2078,3596.1,3595.1,7.4978]
[1732898824242,0.69437,3596.3,3595.1,7.4978]
[1732898824243,3.2078,3595.8,3595.1,7.4978]
[1732898824451,0.27781,3595.5,3595.2,0.27782]
[1732898824649,3.2078,3595.8,3595.3,0.27781]
[1732898824843,3.2078,3595.8,3595.3,4.29]
[1732898824844,0.91566917,3595.7,3595.3,4.29]
[1732898825043,0.91566917,3595.6,3595.3,4.29]
[1732898825244,0.91566917,3595.5,3595.4,0.2778]
[1732898825449,0.91566917,3595.5,3595.4,2.9878]
[1732898825850,0.68675188,3595.5,3595.4,2.9878]
[1732898826655,0.68675188,3595.5,3595.4,2.71]
[1732898827047,0.68675188,3595.5,3595.4,2.98781]
[1732898827245,0.66480188,3595.5,3595.4,2.98781]
[1732898828055,0.66480188,3595.5,3595.4,2.71]
[1732898828254,0.66480188,3595.5,3595.4,2.98781]
[1732898828752,3.2078,3595.8,3595.4,2.71]
[1732898828954,3.2078,3595.8,3595.4,2.9878]
[1732898829154,3.48558,3595.8,3595.5,0.2778]
[1732898829457,3.48558,3595.8,3595.5,0.47]
[1732898829658,3.48558,3595.8,3595.5,0.7478]
[1732898829855,3.2078,3595.8,3595.5,0.47]